{"text_format":"3","workbook":"xlsx","n_sheets":3,"sheets":["Início","Roda de orçamento","Dados"],"not_rendered":{"charts":1,"defined_names":6},"read":"whole","date_system":"1900"}

{"sheet":"Início","index":0,"n_rows":7,"n_cols":2,"rows_kept":7}
[null,"Sobre o modelo"]
[null,"Controle as suas despesas e economias mensais com este modelo."]
[null,"Insira os dados das Despesas na tabela e a Renda Mensal para calcular as Economias."]
[null,"O gráfico de roda mostrando despesas e economias é atualizado automaticamente."]
[null,"Observação:"]
[null,"Encontre instruções adicionais na coluna A da planilha da RODA DE ORÇAMENTO. Esse texto foi oculto intencionalmente. Para remover o texto, selecione a coluna A e, depois, EXCLUIR. Para reexibir o texto, selecione a coluna A e, em seguida, altere a cor da fonte."]
[null,"Para saber mais sobre a tabela, pressione SHIFT e, em seguida, F10 dentro da tabela. Selecione a opção TABELA e, em seguida, TEXTO ALTERNATIVO."]

{"sheet":"Roda de orçamento","index":1,"n_rows":23,"n_cols":7,"rows_kept":23,"merged":[[0,1,0,2],[0,3,0,6],[1,2,4,4]]}
["Crie uma Roda de Orçamento nesta planilha. O título da planilha está na célula à direita e a dica na célula D1. Outras instruções úteis sobre como usar essa planilha estão nas células desta coluna. Aperte seta para baixo para começar.","Roda de orçamento",null,"Preencha a tabela deste modelo. O gráfico mostrará seus gastos mensais em relação à sua renda mensal. Também calculará as porcentagens para mostrar quanto você economizou ou vai economizar."]
["A Renda Mensal fica na célula à direita; o gráfico de roda mostrando as despesas e economias, na célula C2; e o rótulo Total de Economias na célula G2.","Renda\nmensal","Doughnut chart showing expenses and savings proportion is in this cell.",{"$nulls":3},"Total de \nEconomias"]
["Insira a Renda Mensal na célula à direita. O Total de Economias é calculado automaticamente na célula G3. A próxima instrução está na célula A6.",{"v":5738,"d":"R$ 5,738"},{"$nulls":4},{"$f":"Economias","v":{"v":2777,"d":"R$ 2,777"}}]
[{"$nulls":6},"Valor calculado automaticamente"]
[]
["Insira os dados na tabela de Despesas, começando na célula à direita.","Despesas","Categoria","Valor","Frequência","Valor mensal","% do Total"]
[null,"Seguro","Transporte",{"v":300,"d":"R$ 300"},"Semestral",{"$f":"IF(Despesas[[#This Row],[Valor]]>0,IF(Despesas[[#This Row],[Frequência]]<>\"\",ROUND(IF(Despesas[[#This Row],[Frequência]]=\"Mensal\",Despesas[Valor],IF(Despesas[[#This Row],[Frequência]]=\"Semanal\",Despesas[[#This Row],[Valor]]*4,IF(Despesas[[#This Row],[Frequência]]=\"Trimestral\",Despesas[[#This Row],[Valor]]/3,IF(Despesas[[#This Row],[Frequência]]=\"Semestral\",Despesas[[#This Row],[Valor]]/6,IF(Despesas[[#This Row],[Frequência]]=\"Anual\",Despesas[[#This Row],[Valor]]/12,IF(Despesas[[#This Row],[Frequência]]=\"Quinzenal\",Despesas[[#This Row],[Valor]]*2,IF(Despesas[[#This Row],[Frequência]]=\"Bimestral\",Despesas[[#This Row],[Valor]]/2,\"\"))))))),0),\"\"),\"\")","v":{"v":50,"d":"R$ 50"}},{"$f":"IF(Despesas[[#This Row],[Valor mensal]]<>\"\",Despesas[[#This Row],[Valor mensal]]/Receita,\"\")","v":{"v":0.00871383757406762,"d":"1%"}}]
[null,"Combustível","Transporte",{"v":25,"d":"R$ 25"},"Semanal",{"$f":"IF(Despesas[[#This Row],[Valor]]>0,IF(Despesas[[#This Row],[Frequência]]<>\"\",ROUND(IF(Despesas[[#This Row],[Frequência]]=\"Mensal\",Despesas[Valor],IF(Despesas[[#This Row],[Frequência]]=\"Semanal\",Despesas[[#This Row],[Valor]]*4,IF(Despesas[[#This Row],[Frequência]]=\"Trimestral\",Despesas[[#This Row],[Valor]]/3,IF(Despesas[[#This Row],[Frequência]]=\"Semestral\",Despesas[[#This Row],[Valor]]/6,IF(Despesas[[#This Row],[Frequência]]=\"Anual\",Despesas[[#This Row],[Valor]]/12,IF(Despesas[[#This Row],[Frequência]]=\"Quinzenal\",Despesas[[#This Row],[Valor]]*2,IF(Despesas[[#This Row],[Frequência]]=\"Bimestral\",Despesas[[#This Row],[Valor]]/2,\"\"))))))),0),\"\"),\"\")","v":{"v":100,"d":"R$ 100"}},{"$f":"IF(Despesas[[#This Row],[Valor mensal]]<>\"\",Despesas[[#This Row],[Valor mensal]]/Receita,\"\")","v":{"v":0.01742767514813524,"d":"2%"}}]
[null,"Pagamento do carro","Transporte",{"v":200,"d":"R$ 200"},"Mensal",{"$f":"IF(Despesas[[#This Row],[Valor]]>0,IF(Despesas[[#This Row],[Frequência]]<>\"\",ROUND(IF(Despesas[[#This Row],[Frequência]]=\"Mensal\",Despesas[Valor],IF(Despesas[[#This Row],[Frequência]]=\"Semanal\",Despesas[[#This Row],[Valor]]*4,IF(Despesas[[#This Row],[Frequência]]=\"Trimestral\",Despesas[[#This Row],[Valor]]/3,IF(Despesas[[#This Row],[Frequência]]=\"Semestral\",Despesas[[#This Row],[Valor]]/6,IF(Despesas[[#This Row],[Frequência]]=\"Anual\",Despesas[[#This Row],[Valor]]/12,IF(Despesas[[#This Row],[Frequência]]=\"Quinzenal\",Despesas[[#This Row],[Valor]]*2,IF(Despesas[[#This Row],[Frequência]]=\"Bimestral\",Despesas[[#This Row],[Valor]]/2,\"\"))))))),0),\"\"),\"\")","v":{"v":200,"d":"R$ 200"}},{"$f":"IF(Despesas[[#This Row],[Valor mensal]]<>\"\",Despesas[[#This Row],[Valor mensal]]/Receita,\"\")","v":{"v":0.03485535029627048,"d":"3%"}}]
[null,"Hipoteca","Casa",{"v":1600,"d":"R$ 1,600"},"Mensal",{"$f":"IF(Despesas[[#This Row],[Valor]]>0,IF(Despesas[[#This Row],[Frequência]]<>\"\",ROUND(IF(Despesas[[#This Row],[Frequência]]=\"Mensal\",Despesas[Valor],IF(Despesas[[#This Row],[Frequência]]=\"Semanal\",Despesas[[#This Row],[Valor]]*4,IF(Despesas[[#This Row],[Frequência]]=\"Trimestral\",Despesas[[#This Row],[Valor]]/3,IF(Despesas[[#This Row],[Frequência]]=\"Semestral\",Despesas[[#This Row],[Valor]]/6,IF(Despesas[[#This Row],[Frequência]]=\"Anual\",Despesas[[#This Row],[Valor]]/12,IF(Despesas[[#This Row],[Frequência]]=\"Quinzenal\",Despesas[[#This Row],[Valor]]*2,IF(Despesas[[#This Row],[Frequência]]=\"Bimestral\",Despesas[[#This Row],[Valor]]/2,\"\"))))))),0),\"\"),\"\")","v":{"v":1600,"d":"R$ 1,600"}},{"$f":"IF(Despesas[[#This Row],[Valor mensal]]<>\"\",Despesas[[#This Row],[Valor mensal]]/Receita,\"\")","v":{"v":0.27884280237016384,"d":"28%"}}]
[null,"TV a cabo","Casa",{"v":60,"d":"R$ 60"},"Mensal",{"$f":"IF(Despesas[[#This Row],[Valor]]>0,IF(Despesas[[#This Row],[Frequência]]<>\"\",ROUND(IF(Despesas[[#This Row],[Frequência]]=\"Mensal\",Despesas[Valor],IF(Despesas[[#This Row],[Frequência]]=\"Semanal\",Despesas[[#This Row],[Valor]]*4,IF(Despesas[[#This Row],[Frequência]]=\"Trimestral\",Despesas[[#This Row],[Valor]]/3,IF(Despesas[[#This Row],[Frequência]]=\"Semestral\",Despesas[[#This Row],[Valor]]/6,IF(Despesas[[#This Row],[Frequência]]=\"Anual\",Despesas[[#This Row],[Valor]]/12,IF(Despesas[[#This Row],[Frequência]]=\"Quinzenal\",Despesas[[#This Row],[Valor]]*2,IF(Despesas[[#This Row],[Frequência]]=\"Bimestral\",Despesas[[#This Row],[Valor]]/2,\"\"))))))),0),\"\"),\"\")","v":{"v":60,"d":"R$ 60"}},{"$f":"IF(Despesas[[#This Row],[Valor mensal]]<>\"\",Despesas[[#This Row],[Valor mensal]]/Receita,\"\")","v":{"v":0.010456605088881143,"d":"1%"}}]
[null,"Cinema","Entretenimento",{"v":70,"d":"R$ 70"},"Mensal",{"$f":"IF(Despesas[[#This Row],[Valor]]>0,IF(Despesas[[#This Row],[Frequência]]<>\"\",ROUND(IF(Despesas[[#This Row],[Frequência]]=\"Mensal\",Despesas[Valor],IF(Despesas[[#This Row],[Frequência]]=\"Semanal\",Despesas[[#This Row],[Valor]]*4,IF(Despesas[[#This Row],[Frequência]]=\"Trimestral\",Despesas[[#This Row],[Valor]]/3,IF(Despesas[[#This Row],[Frequência]]=\"Semestral\",Despesas[[#This Row],[Valor]]/6,IF(Despesas[[#This Row],[Frequência]]=\"Anual\",Despesas[[#This Row],[Valor]]/12,IF(Despesas[[#This Row],[Frequência]]=\"Quinzenal\",Despesas[[#This Row],[Valor]]*2,IF(Despesas[[#This Row],[Frequência]]=\"Bimestral\",Despesas[[#This Row],[Valor]]/2,\"\"))))))),0),\"\"),\"\")","v":{"v":70,"d":"R$ 70"}},{"$f":"IF(Despesas[[#This Row],[Valor mensal]]<>\"\",Despesas[[#This Row],[Valor mensal]]/Receita,\"\")","v":{"v":0.012199372603694667,"d":"1%"}}]
[null,"Tênis","Diversos",{"v":300,"d":"R$ 300"},"Anual",{"$f":"IF(Despesas[[#This Row],[Valor]]>0,IF(Despesas[[#This Row],[Frequência]]<>\"\",ROUND(IF(Despesas[[#This Row],[Frequência]]=\"Mensal\",Despesas[Valor],IF(Despesas[[#This Row],[Frequência]]=\"Semanal\",Despesas[[#This Row],[Valor]]*4,IF(Despesas[[#This Row],[Frequência]]=\"Trimestral\",Despesas[[#This Row],[Valor]]/3,IF(Despesas[[#This Row],[Frequência]]=\"Semestral\",Despesas[[#This Row],[Valor]]/6,IF(Despesas[[#This Row],[Frequência]]=\"Anual\",Despesas[[#This Row],[Valor]]/12,IF(Despesas[[#This Row],[Frequência]]=\"Quinzenal\",Despesas[[#This Row],[Valor]]*2,IF(Despesas[[#This Row],[Frequência]]=\"Bimestral\",Despesas[[#This Row],[Valor]]/2,\"\"))))))),0),\"\"),\"\")","v":{"v":25,"d":"R$ 25"}},{"$f":"IF(Despesas[[#This Row],[Valor mensal]]<>\"\",Despesas[[#This Row],[Valor mensal]]/Receita,\"\")","v":{"v":0.00435691878703381,"d":"0%"}}]
[null,"Ração de cachorro","Diversos",{"v":60,"d":"R$ 60"},"Mensal",{"$f":"IF(Despesas[[#This Row],[Valor]]>0,IF(Despesas[[#This Row],[Frequência]]<>\"\",ROUND(IF(Despesas[[#This Row],[Frequência]]=\"Mensal\",Despesas[Valor],IF(Despesas[[#This Row],[Frequência]]=\"Semanal\",Despesas[[#This Row],[Valor]]*4,IF(Despesas[[#This Row],[Frequência]]=\"Trimestral\",Despesas[[#This Row],[Valor]]/3,IF(Despesas[[#This Row],[Frequência]]=\"Semestral\",Despesas[[#This Row],[Valor]]/6,IF(Despesas[[#This Row],[Frequência]]=\"Anual\",Despesas[[#This Row],[Valor]]/12,IF(Despesas[[#This Row],[Frequência]]=\"Quinzenal\",Despesas[[#This Row],[Valor]]*2,IF(Despesas[[#This Row],[Frequência]]=\"Bimestral\",Despesas[[#This Row],[Valor]]/2,\"\"))))))),0),\"\"),\"\")","v":{"v":60,"d":"R$ 60"}},{"$f":"IF(Despesas[[#This Row],[Valor mensal]]<>\"\",Despesas[[#This Row],[Valor mensal]]/Receita,\"\")","v":{"v":0.010456605088881143,"d":"1%"}}]
[null,"Seguro para animais","Diversos",{"v":70,"d":"R$ 70"},"Anual",{"$f":"IF(Despesas[[#This Row],[Valor]]>0,IF(Despesas[[#This Row],[Frequência]]<>\"\",ROUND(IF(Despesas[[#This Row],[Frequência]]=\"Mensal\",Despesas[Valor],IF(Despesas[[#This Row],[Frequência]]=\"Semanal\",Despesas[[#This Row],[Valor]]*4,IF(Despesas[[#This Row],[Frequência]]=\"Trimestral\",Despesas[[#This Row],[Valor]]/3,IF(Despesas[[#This Row],[Frequência]]=\"Semestral\",Despesas[[#This Row],[Valor]]/6,IF(Despesas[[#This Row],[Frequência]]=\"Anual\",Despesas[[#This Row],[Valor]]/12,IF(Despesas[[#This Row],[Frequência]]=\"Quinzenal\",Despesas[[#This Row],[Valor]]*2,IF(Despesas[[#This Row],[Frequência]]=\"Bimestral\",Despesas[[#This Row],[Valor]]/2,\"\"))))))),0),\"\"),\"\")","v":{"v":6,"d":"R$ 6"}},{"$f":"IF(Despesas[[#This Row],[Valor mensal]]<>\"\",Despesas[[#This Row],[Valor mensal]]/Receita,\"\")","v":{"v":1.0456605088881143E-3,"d":"0%"}}]
[null,"Supermercado","Alimentação",{"v":100,"d":"R$ 100"},"Semanal",{"$f":"IF(Despesas[[#This Row],[Valor]]>0,IF(Despesas[[#This Row],[Frequência]]<>\"\",ROUND(IF(Despesas[[#This Row],[Frequência]]=\"Mensal\",Despesas[Valor],IF(Despesas[[#This Row],[Frequência]]=\"Semanal\",Despesas[[#This Row],[Valor]]*4,IF(Despesas[[#This Row],[Frequência]]=\"Trimestral\",Despesas[[#This Row],[Valor]]/3,IF(Despesas[[#This Row],[Frequência]]=\"Semestral\",Despesas[[#This Row],[Valor]]/6,IF(Despesas[[#This Row],[Frequência]]=\"Anual\",Despesas[[#This Row],[Valor]]/12,IF(Despesas[[#This Row],[Frequência]]=\"Quinzenal\",Despesas[[#This Row],[Valor]]*2,IF(Despesas[[#This Row],[Frequência]]=\"Bimestral\",Despesas[[#This Row],[Valor]]/2,\"\"))))))),0),\"\"),\"\")","v":{"v":400,"d":"R$ 400"}},{"$f":"IF(Despesas[[#This Row],[Valor mensal]]<>\"\",Despesas[[#This Row],[Valor mensal]]/Receita,\"\")","v":{"v":0.06971070059254096,"d":"7%"}}]
[null,"Café","Alimentação",{"v":25,"d":"R$ 25"},"Semanal",{"$f":"IF(Despesas[[#This Row],[Valor]]>0,IF(Despesas[[#This Row],[Frequência]]<>\"\",ROUND(IF(Despesas[[#This Row],[Frequência]]=\"Mensal\",Despesas[Valor],IF(Despesas[[#This Row],[Frequência]]=\"Semanal\",Despesas[[#This Row],[Valor]]*4,IF(Despesas[[#This Row],[Frequência]]=\"Trimestral\",Despesas[[#This Row],[Valor]]/3,IF(Despesas[[#This Row],[Frequência]]=\"Semestral\",Despesas[[#This Row],[Valor]]/6,IF(Despesas[[#This Row],[Frequência]]=\"Anual\",Despesas[[#This Row],[Valor]]/12,IF(Despesas[[#This Row],[Frequência]]=\"Quinzenal\",Despesas[[#This Row],[Valor]]*2,IF(Despesas[[#This Row],[Frequência]]=\"Bimestral\",Despesas[[#This Row],[Valor]]/2,\"\"))))))),0),\"\"),\"\")","v":{"v":100,"d":"R$ 100"}},{"$f":"IF(Despesas[[#This Row],[Valor mensal]]<>\"\",Despesas[[#This Row],[Valor mensal]]/Receita,\"\")","v":{"v":0.01742767514813524,"d":"2%"}}]
[null,"Equip. de escalada","Entretenimento",{"v":170,"d":"R$ 170"},"Anual",{"$f":"IF(Despesas[[#This Row],[Valor]]>0,IF(Despesas[[#This Row],[Frequência]]<>\"\",ROUND(IF(Despesas[[#This Row],[Frequência]]=\"Mensal\",Despesas[Valor],IF(Despesas[[#This Row],[Frequência]]=\"Semanal\",Despesas[[#This Row],[Valor]]*4,IF(Despesas[[#This Row],[Frequência]]=\"Trimestral\",Despesas[[#This Row],[Valor]]/3,IF(Despesas[[#This Row],[Frequência]]=\"Semestral\",Despesas[[#This Row],[Valor]]/6,IF(Despesas[[#This Row],[Frequência]]=\"Anual\",Despesas[[#This Row],[Valor]]/12,IF(Despesas[[#This Row],[Frequência]]=\"Quinzenal\",Despesas[[#This Row],[Valor]]*2,IF(Despesas[[#This Row],[Frequência]]=\"Bimestral\",Despesas[[#This Row],[Valor]]/2,\"\"))))))),0),\"\"),\"\")","v":{"v":14,"d":"R$ 14"}},{"$f":"IF(Despesas[[#This Row],[Valor mensal]]<>\"\",Despesas[[#This Row],[Valor mensal]]/Receita,\"\")","v":{"v":2.4398745207389336E-3,"d":"0%"}}]
[null,"Mensal. da academia","Diversos",{"v":60,"d":"R$ 60"},"Mensal",{"$f":"IF(Despesas[[#This Row],[Valor]]>0,IF(Despesas[[#This Row],[Frequência]]<>\"\",ROUND(IF(Despesas[[#This Row],[Frequência]]=\"Mensal\",Despesas[Valor],IF(Despesas[[#This Row],[Frequência]]=\"Semanal\",Despesas[[#This Row],[Valor]]*4,IF(Despesas[[#This Row],[Frequência]]=\"Trimestral\",Despesas[[#This Row],[Valor]]/3,IF(Despesas[[#This Row],[Frequência]]=\"Semestral\",Despesas[[#This Row],[Valor]]/6,IF(Despesas[[#This Row],[Frequência]]=\"Anual\",Despesas[[#This Row],[Valor]]/12,IF(Despesas[[#This Row],[Frequência]]=\"Quinzenal\",Despesas[[#This Row],[Valor]]*2,IF(Despesas[[#This Row],[Frequência]]=\"Bimestral\",Despesas[[#This Row],[Valor]]/2,\"\"))))))),0),\"\"),\"\")","v":{"v":60,"d":"R$ 60"}},{"$f":"IF(Despesas[[#This Row],[Valor mensal]]<>\"\",Despesas[[#This Row],[Valor mensal]]/Receita,\"\")","v":{"v":0.010456605088881143,"d":"1%"}}]
[null,"Fone de ouvido","Entretenimento",{"v":50,"d":"R$ 50"},"Anual",{"$f":"IF(Despesas[[#This Row],[Valor]]>0,IF(Despesas[[#This Row],[Frequência]]<>\"\",ROUND(IF(Despesas[[#This Row],[Frequência]]=\"Mensal\",Despesas[Valor],IF(Despesas[[#This Row],[Frequência]]=\"Semanal\",Despesas[[#This Row],[Valor]]*4,IF(Despesas[[#This Row],[Frequência]]=\"Trimestral\",Despesas[[#This Row],[Valor]]/3,IF(Despesas[[#This Row],[Frequência]]=\"Semestral\",Despesas[[#This Row],[Valor]]/6,IF(Despesas[[#This Row],[Frequência]]=\"Anual\",Despesas[[#This Row],[Valor]]/12,IF(Despesas[[#This Row],[Frequência]]=\"Quinzenal\",Despesas[[#This Row],[Valor]]*2,IF(Despesas[[#This Row],[Frequência]]=\"Bimestral\",Despesas[[#This Row],[Valor]]/2,\"\"))))))),0),\"\"),\"\")","v":{"v":4,"d":"R$ 4"}},{"$f":"IF(Despesas[[#This Row],[Valor mensal]]<>\"\",Despesas[[#This Row],[Valor mensal]]/Receita,\"\")","v":{"v":6.9710700592540956E-4,"d":"0%"}}]
[null,"Corte de cabelo","Diversos",{"v":70,"d":"R$ 70"},"Mensal",{"$f":"IF(Despesas[[#This Row],[Valor]]>0,IF(Despesas[[#This Row],[Frequência]]<>\"\",ROUND(IF(Despesas[[#This Row],[Frequência]]=\"Mensal\",Despesas[Valor],IF(Despesas[[#This Row],[Frequência]]=\"Semanal\",Despesas[[#This Row],[Valor]]*4,IF(Despesas[[#This Row],[Frequência]]=\"Trimestral\",Despesas[[#This Row],[Valor]]/3,IF(Despesas[[#This Row],[Frequência]]=\"Semestral\",Despesas[[#This Row],[Valor]]/6,IF(Despesas[[#This Row],[Frequência]]=\"Anual\",Despesas[[#This Row],[Valor]]/12,IF(Despesas[[#This Row],[Frequência]]=\"Quinzenal\",Despesas[[#This Row],[Valor]]*2,IF(Despesas[[#This Row],[Frequência]]=\"Bimestral\",Despesas[[#This Row],[Valor]]/2,\"\"))))))),0),\"\"),\"\")","v":{"v":70,"d":"R$ 70"}},{"$f":"IF(Despesas[[#This Row],[Valor mensal]]<>\"\",Despesas[[#This Row],[Valor mensal]]/Receita,\"\")","v":{"v":0.012199372603694667,"d":"1%"}}]
[null,"Videogames","Entretenimento",{"v":100,"d":"R$ 100"},"Mensal",{"$f":"IF(Despesas[[#This Row],[Valor]]>0,IF(Despesas[[#This Row],[Frequência]]<>\"\",ROUND(IF(Despesas[[#This Row],[Frequência]]=\"Mensal\",Despesas[Valor],IF(Despesas[[#This Row],[Frequência]]=\"Semanal\",Despesas[[#This Row],[Valor]]*4,IF(Despesas[[#This Row],[Frequência]]=\"Trimestral\",Despesas[[#This Row],[Valor]]/3,IF(Despesas[[#This Row],[Frequência]]=\"Semestral\",Despesas[[#This Row],[Valor]]/6,IF(Despesas[[#This Row],[Frequência]]=\"Anual\",Despesas[[#This Row],[Valor]]/12,IF(Despesas[[#This Row],[Frequência]]=\"Quinzenal\",Despesas[[#This Row],[Valor]]*2,IF(Despesas[[#This Row],[Frequência]]=\"Bimestral\",Despesas[[#This Row],[Valor]]/2,\"\"))))))),0),\"\"),\"\")","v":{"v":100,"d":"R$ 100"}},{"$f":"IF(Despesas[[#This Row],[Valor mensal]]<>\"\",Despesas[[#This Row],[Valor mensal]]/Receita,\"\")","v":{"v":0.01742767514813524,"d":"2%"}}]
[null,"Roupas","Diversos",{"v":500,"d":"R$ 500"},"Anual",{"$f":"IF(Despesas[[#This Row],[Valor]]>0,IF(Despesas[[#This Row],[Frequência]]<>\"\",ROUND(IF(Despesas[[#This Row],[Frequência]]=\"Mensal\",Despesas[Valor],IF(Despesas[[#This Row],[Frequência]]=\"Semanal\",Despesas[[#This Row],[Valor]]*4,IF(Despesas[[#This Row],[Frequência]]=\"Trimestral\",Despesas[[#This Row],[Valor]]/3,IF(Despesas[[#This Row],[Frequência]]=\"Semestral\",Despesas[[#This Row],[Valor]]/6,IF(Despesas[[#This Row],[Frequência]]=\"Anual\",Despesas[[#This Row],[Valor]]/12,IF(Despesas[[#This Row],[Frequência]]=\"Quinzenal\",Despesas[[#This Row],[Valor]]*2,IF(Despesas[[#This Row],[Frequência]]=\"Bimestral\",Despesas[[#This Row],[Valor]]/2,\"\"))))))),0),\"\"),\"\")","v":{"v":42,"d":"R$ 42"}},{"$f":"IF(Despesas[[#This Row],[Valor mensal]]<>\"\",Despesas[[#This Row],[Valor mensal]]/Receita,\"\")","v":{"v":7.3196235622168E-3,"d":"1%"}}]

{"sheet":"Dados","index":2,"n_rows":10,"n_cols":5,"rows_kept":10,"hidden":true}
["Esta planilha deve permanecer oculta"]
["Categorias","Quantidade por categoria","Porcentagem do total","Frequência","Poupança"]
["Casa",{"$f":"IF(SUMIF(Despesas[Categoria],\"Casa\",Despesas[Valor mensal])>0,SUMIF(Despesas[Categoria],\"Casa\",Despesas[Valor mensal]),NA())","v":{"v":1660,"d":"R$ 1,660.00"}},{"$f":"IF(B3>0,B3/Receita,\"\")","v":{"v":0.289299407459045,"d":"R$ 0.29"}},"Semanal",{"$f":"Receita-SUM(Despesas[Valor mensal])","v":{"v":2777,"d":"R$ 2,777.00"}}]
["Entretenimento",{"$f":"IF(SUMIF(Despesas[Categoria],\"Entretenimento\",Despesas[Valor mensal])>0,SUMIF(Despesas[Categoria],\"Entretenimento\",Despesas[Valor mensal]),NA())","v":{"v":188,"d":"R$ 188.00"}},{"$f":"IF(B4>0,B4/Receita,\"\")","v":{"v":0.03276402927849425,"d":"R$ 0.03"}},"Mensal"]
["Transporte",{"$f":"IF(SUMIF(Despesas[Categoria],\"Transporte\",Despesas[Valor mensal])>0,SUMIF(Despesas[Categoria],\"Transporte\",Despesas[Valor mensal]),NA())","v":{"v":350,"d":"R$ 350.00"}},{"v":0.06099686301847333,"d":"R$ 0.06"},"Trimestral"]
["Alimentação",{"$f":"IF(SUMIF(Despesas[Categoria],\"Alimentação\",Despesas[Valor mensal])>0,SUMIF(Despesas[Categoria],\"Alimentação\",Despesas[Valor mensal]),NA())","v":{"v":500,"d":"R$ 500.00"}},{"v":0.08713837574067619,"d":"R$ 0.09"},"Semestral"]
["Diversos",{"$f":"IF(SUMIF(Despesas[Categoria],\"Diversos\",Despesas[Valor mensal])>0,SUMIF(Despesas[Categoria],\"Diversos\",Despesas[Valor mensal]),NA())","v":{"v":263,"d":"R$ 263.00"}},{"v":0.04583478563959568,"d":"R$ 0.05"},"Anual"]
["Poupança",{"$f":"IF(E3>0,E3,NA())","v":{"v":2777,"d":"R$ 2,777.00"}},{"v":0.4839665388637156,"d":"R$ 0.48"},"Quizenal"]
[{"$nulls":3},"Bimensal"]
[null,"TOTAL:",{"$f":"SUM(C3:C8)","v":{"v":1,"d":"R$ 1.00"}}]